Cogmind - Beta 13 @@@ ROGUE MODE // 2024.07.14 @ 11:25:21 Player: Annull999 Result: Destroyed by D-53 Grenadier with Mini Grenade Launcher Performance ------------- Evolutions (1) 500 Regions Visited (4) 800 Robots Destroyed (22) 110 Value Destroyed (669) 669 Prototype IDs (0) 0 Alien Tech Used (0) 0 Bonus (137) 137 TOTAL SCORE: 2216 Bonus ------- Follower Combat Kills 160 Friendly Fire -23 Cogmind --------- Core Integrity 0/400 Matter 300/300 Energy 91/100 System Corruption 0% Temperature Cool (0) Movement Rolling (160) Ox4 Location -9/Mines Parts ------- > --- POWER (1) -------- (None) > --- PROPULSION (2) --- Compact Wheel > --- UTILITY (4) ------ Huge Storage Unit > --- WEAPON (2) ------- (None) > --- INVENTORY (25) --- Ion Engine Compact Wheel Improved Hover Unit Improved Heat Sink High-capacity Storage Unit Trap Scanner Improved Sensor Array Improved Sensor Array Seismic Detector Improved Trap Extractor (0/6) Beam Cannon Autogun Autogun Flak Cannon Flak Cannon Grenade Launcher Grenade Launcher Mining Laser Mining Laser Peak State ------------ > --- POWER ------------ Light Nuclear Core > --- PROPULSION ------- Hover Unit Improved Hover Unit > --- UTILITY ---------- Huge Storage Unit Improved Sensor Array Seismic Detector Targeting Computer > --- WEAPON ----------- Autogun Autogun > --- INVENTORY -------- Wheel Compact Wheel Compact Wheel Compact Wheel Trap Scanner Improved Sensor Array Improved Sensor Array Improved Trap Extractor Autogun Flak Cannon Flak Cannon Flak Cannon Grenade Launcher Grenade Launcher Mining Laser [Rating: 19] Favorites ----------- Power Light Nuclear Core Engine Ion Engine Power Core Light Nuclear Core Propulsion Improved Hover Unit Leg Aluminum Leg Wheel Wheel Hover Unit Improved Hover Unit Utility Targeting Computer Device Improved Sensor Array Storage Medium Storage Unit Processor Targeting Computer Protection Backup Plating III Weapon Autogun Energy Gun EM Pulse Gun Ballistic Gun Autogun Ballistic Cannon Flak Cannon Launcher Grenade Launcher Special Weapon Mining Laser Build | -11 -10 -10 -9 -9 ------- Run | Yrd Mat Min Mat Min Slots Evolved 2 | . . . 2 . Power . | . . . . . Propulsion . | . . . . . Utility 2 | . . . 2 . Weapon . | . . . . . Parts Attached 32 | . 16 1 12 3 Power 2 | . 2 . . . Engine 1 | . 1 . . . Core 1 | . 1 . . . Reactor . | . . . . . Propulsion 10 | . 2 1 5 2 Treads . | . . . . . Leg . | . . . . . Wheel 6 | . . 1 3 2 Hover 4 | . 2 . 2 . Flight . | . . . . . Utility 7 | . 2 . 4 1 Device 3 | . . . 3 . Storage 2 | . 1 . 1 . Processor 1 | . 1 . . . Hackware . | . . . . . Protection 1 | . . . . 1 Artifact . | . . . . . Weapon 13 | . 10 . 3 . Energy Gun 1 | . 1 . . . Energy Cannon . | . . . . . Ballistic Gun 6 | . 5 . 1 . Ballistic Cannon 2 | . 1 . 1 . Launcher 3 | . 2 . 1 . Special Weapon 1 | . 1 . . . Impact Weapon . | . . . . . Slashing Weapon . | . . . . . Piercing Weapon . | . . . . . Special Melee Weapon . | . . . . . Unidentified Prototypes . | . . . . . Parts Lost 13 | . 3 1 2 7 Power 1 | . . . . 1 Propulsion 5 | . 1 1 2 1 Utility 3 | . . . . 3 Weapon 4 | . 2 . . 2 Highest Loss Streak 7 | . 2 1 1 7 To Critical Strikes . | . . . . . Average Slot Usage (%) 96 | . 94 100 94 98 Engine 2 | . 11 . . . Core 10 | . 2 14 11 10 Leg 4 | . 21 . . . Wheel 8 | . . 6 8 21 Hover 12 | . 6 22 12 . Device 8 | . . . 17 20 Storage 12 | . 14 14 11 11 Processor 12 | . 11 14 11 11 Energy Gun 1 | . 9 . . . Ballistic Gun 20 | . 13 28 21 10 Ballistic Cannon 2 | . 2 . . 11 Naked Turns . | . . . . . Heaviest Build 96 | 13 21 21 96 96 Greatest Support 32 | 20 20 14 16 32 Greatest Overweight (x) 9 | . 5 2 9 5 Average Overweight (x) 2 | . . 1 6 2 Largest Inventory Capacity 25 | 8 10 10 25 25 Average Capacity 16 | 8 9 10 22 25 Most Carried 19 | 6 10 10 17 19 Average Carried 11 | 6 8 9 12 17 Final Capacity 25 | 8 10 10 25 25 Final Carried 19 | 6 9 9 17 19 Class Distribution -------------------- 100% | Mutant Dominant Class ---------------- Mutant | -10/Materials Mutant | -10/Mines Mutant | -9/Materials Mutant | -9/Mines Resources | -11 -10 -10 -9 -9 ----------- Run | Yrd Mat Min Mat Min Matter Collected 848 | 200 169 253 180 46 Remotely . | . . . . . Salvage Created 655 | . 414 102 139 . Parts 40 | . 23 9 8 . Haulers Intercepted . | . . . . . Recyclers Shooed . | . . . . . Parts Field Recycled . | . . . . . Retrieved Matter . | . . . . . Parts Self-Destructed . | . . . . . Prevented . | . . . . . Kills | -11 -10 -10 -9 -9 ------- Run | Yrd Mat Min Mat Min Combat Hostiles Destroyed 19 | . 10 4 5 . Guns 10 | . 5 4 1 . Cannons 3 | . 2 . 1 . AOE 6 | . 3 . 3 . Classes Destroyed 5 | . 3 1 1 . Worker 1 | . 1 . . . Builder 1 | . . . 1 . Operator 1 | . 1 . . . Swarmer 2 | . . 2 . . Grunt 17 | . 10 2 5 . Best Kill Streak 5 | . 3 2 5 . Combat Bots Only 4 | . 2 2 4 . Max Kills in Single Turn 3 | . 2 1 3 . Gunslinging . | . . . . . Exploded 2 | . 1 . 2 . Melee . | . . . . . Uniques/NPCs Destroyed . | . . . . . Combat | -11 -10 -10 -9 -9 -------- Run | Yrd Mat Min Mat Min Hostile Shots Fired 122 | . 54 18 32 18 Missed 30 | . 15 5 10 . Damage Taken 1894 | . 498 217 424 755 Core 542 | . 56 66 99 321 Absorbed by Shields . | . . . . . Core Remaining (%) 75 | 100 . 51 . . Volleys Fired 59 | . 32 16 10 1 Largest 2 | . 2 2 2 2 Hottest 67 | . 60 46 67 67 Shots Fired 111 | . 57 32 20 2 Gun 94 | . 48 32 13 1 Cannon 10 | . 5 . 4 1 Launcher 7 | . 4 . 3 . Special . | . . . . . Kinetic 82 | . 31 32 17 2 Thermal . | . . . . . Explosive 7 | . 4 . 3 . Electromagnetic 22 | . 22 . . . Robot Hit Streak 15 | . 6 15 7 1 Robot Miss Streak 5 | . 3 2 3 5 Penetration Max . | . . . . . Secondary Targets . | . . . . . Shots Hit Robots 71 | . 34 23 13 1 Core Hits 42 | . 17 9 16 . Critical Kills . | . . . . . Critical Parts Destroyed 2 | . 1 . 1 . Critical Strikes 2 | . 1 . 1 . Destroy 2 | . 1 . 1 . Melee Attacks . | . . . . . Impact . | . . . . . Slashing . | . . . . . Piercing . | . . . . . Sneak Attacks . | . . . . . Combat Hostiles . | . . . . . Follow-up Attacks . | . . . . . Damage Inflicted 1648 | . 854 327 455 12 Guns 820 | . 367 327 126 . Cannons 124 | . 62 . 50 12 Explosions 704 | . 425 . 279 . Melee . | . . . . . Ramming . | . . . . . Kinetic 770 | . 255 327 176 12 Thermal 144 | . 144 . . . Explosive 560 | . 281 . 279 . Electromagnetic 174 | . 174 . . . Impact . | . . . . . Slashing . | . . . . . Piercing . | . . . . . Highest Corruption . | . . . . . Average Corruption . | . . . . . Corruption Purged . | . . . . . Corruption Blocked . | . . . . . Overload Shots . | . . . . . Overflow Damage 18 | . 18 . . . Projectiles . | . . . . . Explosions 18 | . 18 . . . Melee . | . . . . . Knockbacks 5 | . 1 . 4 . Impact . | . . . . . Kinetic 5 | . 1 . 4 . Secondary . | . . . . . Self-Inflicted Damage 37 | . 34 . 3 . Shots 2 | . 1 . 1 . Rammed . | . . . . . Targets Rammed . | . . . . . Kicked . | . . . . . Crushed . | . . . . . Highest Temperature 75 | . 57 70 75 26 Average Temperature 23 | . 19 28 27 15 Received Heat Transfer 525 | . 258 120 147 . Siege Activations . | . . . . . Robots Corrupted . | . . . . . Combat Hostiles . | . . . . . Parts Fried . | . . . . . Impact Corruptions . | . . . . . Robots Melted . | . . . . . Combat Hostiles . | . . . . . Parts Melted . | . . . . . Heat Transferred 200 | . 200 . . . Parts Sabotaged . | . . . . . Parts Stolen . | . . . . . Parts Stripped . | . . . . . Power Chain Reactions 2 | . 2 . . . Alert | -11 -10 -10 -9 -9 ------- Run | Yrd Mat Min Mat Min Peak Influence 216 | . 216 153 115 40 Initial 65 | . . 65 . 40 Average 57 | . 86 80 26 38 Maximum Alert Level 1 | . 1 . . . Low Security (%) 98 | 100 93 100 100 100 Level 1 1 | . 6 . . . Level 2 . | . . . . . Level 3 . | . . . . . Level 4 . | . . . . . Level 5 . | . . . . . High Security . | . . . . . Max Security . | . . . . . Squads Dispatched 7 | . 5 . 2 . Investigation 5 | . 3 . 2 . Extermination . | . . . . . Reinforcement 2 | . 2 . . . Assault . | . . . . . Garrison . | . . . . . Intercept . | . . . . . Searches Triggered . | . . . . . Construction Impeded . | . . . . . Haulers Reinforced . | . . . . . Active Scanning Responses . | . . . . . Cargo Convoy Interrupts . | . . . . . Stealth | -11 -10 -10 -9 -9 --------- Run | Yrd Mat Min Mat Min Distress Signals 1 | . . . 1 . Communications Jammed . | . . . . . Distress Signals . | . . . . . Times Spotted 42 | . 15 7 18 2 Peak Tracking Total 7 | . 5 3 7 2 Tactical Retreats . | . . . . . Traps | -11 -10 -10 -9 -9 ------- Run | Yrd Mat Min Mat Min Traps Triggered 4 | . 2 1 1 . Indirectly . | . . . . . Trap Hack Attempts . | . . . . . Triggered . | . . . . . Disarmed . | . . . . . Reprogrammed . | . . . . . Reused . | . . . . . Traps Extracted . | . . . . . Installed . | . . . . . Triggered . | . . . . . Machines | -11 -10 -10 -9 -9 ---------- Run | Yrd Mat Min Mat Min Machines Disabled 1 | . 1 . . . Max in Single Turn 1 | . 1 . . . Machines Repaired . | . . . . . Machines Dismantled . | . . . . . Machines Sabotaged . | . . . . . Overloaded Fab Kills . | . . . . . Hacking | -11 -10 -10 -9 -9 --------- Run | Yrd Mat Min Mat Min Machines Accessed 11 | . 4 1 6 . Terminals 8 | . 4 . 4 . Fabricators . | . . . . . Repair Stations . | . . . . . Recycling Units 1 | . . . 1 . Scanalyzers 1 | . . . 1 . Garrison Access . | . . . . . Total Hacks 31 | . 9 1 21 . Successful 16 | . 4 1 11 . Failed 15 | . 5 . 10 . Catastrophic 7 | . 2 . 5 . Database Lockouts . | . . . . . Manual 14 | . 7 . 7 . Terminals 19 | . 9 . 10 . Fabricators . | . . . . . Repair Stations . | . . . . . Recycling Units 1 | . . . 1 . Scanalyzers 10 | . . . 10 . Garrison Access . | . . . . . Terminal Hacks 5 | . 3 1 1 . Record 1 | . 1 . . . Open Door 1 | . . 1 . . Branch Access Points 2 | . 1 . 1 . Locate Traps 1 | . 1 . . . Fabricator Hacks . | . . . . . Repair Station Hacks . | . . . . . Recycling Unit Hacks 1 | . . . 1 . Report Inventory 1 | . . . 1 . Scanalyzer 9 | . . . 9 . Insert Component 4 | . . . 4 . Analyze 5 | . . . 5 . Garrison Access Hacks . | . . . . . Unauthorized Hacks 1 | . 1 . . . Terminals 1 | . 1 . . . Botnet 1 | . 1 . . . Fabricators . | . . . . . Repair Stations . | . . . . . Recycling Units . | . . . . . Scanalyzers . | . . . . . Garrison Access . | . . . . . Data Cores Recovered . | . . . . . Used . | . . . . . Hacking Detections 7 | . 3 . 4 . Full Trace Events 4 | . 2 . 2 . Feedback Events . | . . . . . Feedback Blocked . | . . . . . Robot Schematics Acquired . | . . . . . Robots Built . | . . . . . Authchips . | . . . . . Time . | . . . . . Total Robot Build Rating . | . . . . . Part Schematics Acquired 4 | . . . 4 . Parts Built . | . . . . . Authchips . | . . . . . Time . | . . . . . Total Part Build Rating . | . . . . . Parts Repaired . | . . . . . Time . | . . . . . Parts Recycled . | . . . . . Recycled Matter . | . . . . . Retrieved Matter . | . . . . . Retrieved Components . | . . . . . Parts Scanalyzed 4 | . . . 4 . Part Schematics Acquired 4 | . . . 4 . Parts Damaged . | . . . . . Bothacking | -11 -10 -10 -9 -9 ------------ Run | Yrd Mat Min Mat Min Used RIF Installer . | . . . . . Robots Hacked . | . . . . . Non-combat . | . . . . . Combat . | . . . . . Robot Hacks Applied . | . . . . . Relay Couplers Released . | . . . . . Fabnet Peak Effective % . | . . . . . Robots Rewired . | . . . . . Allies Hacked . | . . . . . Hacks Repelled . | . . . . . Allies | -11 -10 -10 -9 -9 -------- Run | Yrd Mat Min Mat Min Total Allies 4 | . . 1 . 3 Largest Group 3 | . . 1 1 3 Highest-Rated Group 40 | . . 31 31 40 Highest-Rated Ally 31 | . . 31 31 16 Total Orders . | . . . . . Ally Attacks 28 | . . 18 8 2 Total Damage 382 | . . 256 126 . Kills 6 | . . 4 2 . Allies Corrupted . | . . . . . Allies Melted . | . . . . . Intel | -11 -10 -10 -9 -9 ------- Run | Yrd Mat Min Mat Min Robot Analysis Total . | . . . . . Derelict Logs Recovered 1 | . . 1 . . Drone Launches . | . . . . . Drone Recoveries . | . . . . . Exploration | -11 -10 -10 -9 -9 ------------- Run | Yrd Mat Min Mat Min Turns Passed 2686 | 3 551 844 888 400 Spaces Moved 1768 | 3 344 681 442 298 Core 1 | . 1 . . . Treads . | . . . . . Legs 267 | 3 264 . . . Wheels 942 | . . 319 325 298 Hover 558 | . 79 362 117 . Flight . | . . . . . Fastest Speed 110 | 120 116 110 110 130 Average Speed 135 | 120 120 113 183 130 Slowest Speed 476 | 120 300 116 476 175 Overloaded Moves . | . . . . . Propulsion Burnouts . | . . . . . Robots Hopped . | . . . . . Cave-ins Triggered . | . . . . . Exploration Rate (%) 55 | 2 78 100 30 69 Regions Visited 4 Branch Regions 2 Pre-discovered Areas 1 | . . 1 . . Known Exits Taken 2 | . 1 . 1 . Unknown Exits Taken 2 | 1 . 1 . . Scrap Searched 3 | . . 1 . 2 Spaces Dug . | . . . . . Terrain Destroyed 39 | . 26 . 13 . Melee . | . . . . . Projectile . | . . . . . AOE 39 | . 26 . 13 . Terrain Rammed . | . . . . . Walls Destroyed . | . . . . . Machines Disabled . | . . . . . Actions | -11 -10 -10 -9 -9 --------- Run | Yrd Mat Min Mat Min Total 1967 | 2 425 729 506 305 Wait 53 | . 7 29 17 . Move 1764 | 2 343 680 441 298 Hop . | . . . . . Pick Up 41 | . 18 2 18 3 Fast Attach . | . . . . . Attach 20 | . 11 1 7 1 Detach 2 | . 1 . 1 . Swap 12 | . 5 . 5 2 Drop 16 | . 8 1 7 . Fire 59 | . 32 16 10 1 Melee . | . . . . . Ram . | . . . . . Kick . | . . . . . Crush . | . . . . . Escape Stasis . | . . . . . Rewire . | . . . . . Trap . | . . . . . Miscellaneous . | . . . . . Route ------- -11/Scrapyard -10/Materials (discovered 4 exits: *Mat x2 / *Min x2) -10/Mines (discovered 2 exits: *Mat x2) -9/Materials (discovered 3 exits: *Min / Sto x2) -9/Mines (discovered 1 exit: [*Mat]) History --------- Turn | Location | Event 1 | -11/Scrapyard | Discovered new exit (range 3) 4 | -11/Scrapyard | Entered Materials 4 | -10/Materials | Discovered new exit (range 15) 133 | -10/Materials | Discovered new exit (range 6) 279 | -10/Materials | Discovered new exit (range 13) 306 | -10/Materials | Build established: Mutant 335 | -10/Materials | Discovered new exit (range 11) 488 | -10/Materials | Identified exit to Mines 555 | -10/Materials | Entered Mines 567 | -10/Mines | Escorted by a lone wolf Derelict 584 | -10/Mines | Learned Materials stockpile data 587 | -10/Mines | Learned location of Storage (-9) 641 | -10/Mines | Met a Derelict who couldn't figure out how to use a Trap Extractor 875 | -10/Mines | Discovered new exit (range 3) 1004 | -10/Mines | Discovered new exit (range 13) 1399 | -10/Mines | Entered Materials 1399 | -9/Materials | Accompanied by 1 ally 1399 | -9/Materials | Evolved 2 slots: Utility x2 2108 | -9/Materials | Identified exit to Mines 2108 | -9/Materials | Identified exit to Storage 2287 | -9/Materials | Entered Mines 2289 | -9/Mines | Assisted by bots powering up and referring to "LRC-V3" 2379 | -9/Mines | Discovered new exit (range 14) 2633 | -9/Mines | Assembled infested the area 2678 | -9/Mines | Core integrity fell below 50% 2686 | -9/Mines | Core integrity fell below 20% 2687 | -9/Mines | Destroyed by D-53 Grenadier with Mini Grenade Launcher Last Messages --------------- squad. 02667_ C-30 ARC bursts open, deploying its payload. 02667_ D-53 Grenadier unfolds itself. 02667_ Mercenary 2a destroyed. 02667_ Trooper 2a destroyed. 02667_ Imp. Sensor Array destroyed. 02668_ K-01 Serf collects debris. 02672_ K-01 Serf destroyed. 02672_ Trooper 2b destroyed. 02672_ K-01 Serf destroyed. 02673_ Autogun destroyed. 02678_ Lgt. Nuclear Core destroyed. 02678_ K-01 Serf collects debris. 02681_ Flak Cannon destroyed. 02681_ Backup Plating III destroyed. 02682_ K-01 Serf collects debris. 02682_ Targeting Computer destroyed. 02684_ Com. Wheel destroyed. 02686_ The unstable cave ceiling collapses. 02687_ K-01 Serf collects debris. Map ----- +----------------------------------------------------+ | ??????# #??????# ##?## ##?????????# | | ??????# ##????## ### #??????????# # | | ???#?## ##???# #???????????##### | | ?? #?# #???# #???????????????? | | ## ??# #???# ##???????????????? | | ???# #????## ##????????????????? | | #???# ##????#### = ##?????????????????? | | ##### #####???# =%! #??????????????????? | | ##?## =% ##??????????????????? | | ### [ ##??????????????????? | | ### ### !% ###????????????????? | | ??# ##??# *% #????????????????? | | ??## #??## k ##???????????????? | | ???### #?## #???????????????? | | ?????## #?# #???????????????? | | ??????## ##?# #???????????????? | | ???????# ##?## #???????????????? | | ???????# ##?# d #???????????????? | | ???????# #### ##???????????????? | | ???????# ## #????????????????? | | ???????## d ##????????????????? | | ????????# ## #?????????????????? | | ????????## ####### #?????????????????? | | ?????????####?????## ##?????????????????? | | ???????????????????## #??????????????????? | | ????????????????????# @ #??????????????????? | | ????????????????????# # #????????????????? | | ????????????????###### #????????????????? | | ????????????????# #### #####????????????????? | | ????????????????# ##?## ######???????????????? | | ????????????????# ### ##??????????????? | | ????????????????# ## #??????????????? | | ????????????????# #??????????????? | | ????????????????# ##?????????????? | | #???????????????# ###### #?????????????? | | ##??????????????# ##???# #?????????????? | | ##???????####??# #????## ##?????????????? | | ##?????## ##?##????## ##??????????????? | | #????## ##?????## ##???????????????? | | #???## ##??### #????????????????? | | #???## #### ######???????????? | | ##??# ## ## ## ##??????????? | | #### #### #######????? | | ###### #??# ## #????? | | ##????## ##?## #???? | | ##########??????## ###?## #???? | | ##????????????????####???# # #????? | | ?????????????????????????# ! ####?##????? | | ????????????????????????# ###= ##??????????? | | ????????????????????????# #?## #???????????? | +----------------------------------------------------+ Best States ------------- Heat Dissipation 28 Energy Generation 14 Energy Capacity 250 Matter Stores 300 Matter Capacity 300 Sight Range 16 Robot Scan Range 15 Terrain Scan Density 10 Armor Coverage 80 Evasion (%) 55 Targeting Accuracy 5 Item Schematics ----------------- Grenade Launcher | -9/Materials | Scanalyzed Trap Scanner | -9/Materials | Scanalyzed Imp. Trap Extractor | -9/Materials | Scanalyzed Wheel | -9/Materials | Scanalyzed Robot Schematics ------------------ None Fabricated ------------ Nothing Alien Tech Used ----------------- None Achievements -------------- None Challenges ------------ None Game ------ Seed MiniTargetBiocell Manual? 0 Play Time 00:34:20 Cumulative 8.6 hours Start 2024.07.13 @ 12:38:14 End 2024.07.14 @ 11:25:21 Sessions 3 Manual Loads 0 Difficulty Rogue Special Mode None Game No. 15 Rogue 15 Adventurer 0 Explorer 0 Win Type - Total 0 Types 0/0/0/0/0/0/0/0/0 Lore% 5 Gallery% 11 Achievement% 11 Wizard Run 0 Options --------- Layout 0 ASCII 1 Keyboard 0 Movement Mouse Keybinds 0 Fullscreen 2 Font 18/TerminusBold Map View 76x50 Zoom Use 33% Tactical HUD 1 Map Filters NONE Filters NONE Steam 1 RUN: a0e2156e-d8a5-4cf5-8ecd-d6f74956b4a4